bitfinex-derivatives/quotes_SOLF0:USTF0_20241024
["timestamp","ask_amount","ask_price","bid_price","bid_amount"]
[1729731553701,13.90161049,172.84,172.76,1.2661]
[1729731553909,18.62161049,172.84,172.81,2.896]
[1729731554109,18.62161049,172.84,172.76,1.2661]
[1729731554503,18.62161049,172.84,172.79,2.8964]
[1729731555003,13.90161049,172.81,172.77,2.8966]
[1729731555209,13.90161049,172.81,172.76,1.2661]
[1729731555908,13.90161049,172.81,172.78,2.8964]
[1729731556107,13.90161049,172.79,172.62,62.58]
[1729731556304,13.90161049,172.74,172.69,1.44863886]
[1729731556501,13.90161049,172.74,172.65,2.4849]
[1729731556502,18.62161049,172.74,172.65,2.4849]
[1729731558802,18.62161049,172.74,172.7,2.8977]
[1729731560301,18.62161049,172.74,172.66,1.44916567]
[1729731560510,1.2229,172.78,172.67,1.44916567]
[1729731560709,13.90161049,172.77,172.68,1.44916567]
[1729731560910,13.90161049,172.77,172.67,13.90161049]
[1729731560911,18.62161049,172.77,172.69,1.44916567]
[1729731561211,18.62161049,172.77,172.67,18.62161049]
[1729731561407,18.62161049,172.77,172.68,1.44898514]
[1729731561705,18.62161049,172.77,172.69,1.44898514]
[1729731561912,18.62161049,172.77,172.7,1.44898514]
[1729731562212,18.62161049,172.77,172.73,2.8972]
[1729731562912,18.62161049,172.77,172.68,1.44893703]
[1729731563115,18.62161049,172.77,172.74,2.8972]
[1729731564415,18.62161049,172.77,172.68,1.44902215]
[1729731564609,18.62161049,172.77,172.73,2.8974]
[1729731564910,13.90161049,172.75,172.68,1.44902427]
[1729731565114,13.90161049,172.75,172.7,2.8977]
[1729731565315,13.90161049,172.75,172.67,1.44914936]
[1729731565515,13.90161049,172.75,172.66,1.44914936]
[1729731565718,13.90161049,172.75,172.72,2.8975]
[1729731567016,13.90161049,172.77,172.74,2.8972]
[1729731569123,4.72,172.79,172.72,2.8976]
[1729731569413,4.72,172.79,172.71,13.90161049]
[1729731569414,13.90161049,172.81,172.71,13.90161049]
[1729731569615,4.72,172.8,172.71,15.35048556]
[1729731569814,13.90161049,172.81,172.71,15.35048556]
[1729731570015,15.11921049,172.84,172.73,13.90161049]
[1729731570210,4.72,172.83,172.76,13.90161049]
[1729731570415,4.72,172.84,172.82,2.8958]
[1729731570618,4.72,172.84,172.77,1.2746]
[1729731571213,13.90161049,172.86,172.81,2.8959]
[1729731571419,4.72,172.85,172.81,2.8959]
[1729731571618,4.72,172.85,172.77,1.2746]
[1729731572819,13.90161049,172.84,172.77,1.2746]
[1729731573017,13.90161049,172.84,172.79,2.8964]
[1729731574721,13.90161049,172.84,172.77,1.2746]
[1729731575519,4.72,172.83,172.77,1.2746]
[1729731576119,4.72,172.83,172.79,2.8963]
[1729731577521,4.72,172.83,172.8,2.8962]
[1729731578521,18.62161049,172.84,172.8,2.8962]
[1729731579523,4.72,172.84,172.83,2.8957]
[1729731579724,1.2531,172.88,172.78,13.90161049]
[1729731579725,4.72,172.87,172.78,13.90161049]
[1729731579923,1.2884,172.92,172.82,13.90161049]
[1729731580222,4.72,172.91,172.82,13.90161049]
[1729731580828,4.72,172.91,172.88,2.8947]
[1729731582429,4.72,172.91,172.87,2.895]
[1729731582637,4.72,172.91,172.82,16.41591049]
[1729731583728,4.72,172.91,172.82,2.5143]
[1729731583729,18.62161049,172.91,172.82,2.5143]
[1729731583929,1.2884,172.92,172.82,5.4101]
[1729731583930,13.90161049,172.89,172.82,5.4101]
[1729731584137,13.90161049,172.87,172.78,13.90161049]
[1729731584429,4.72,172.86,172.78,15.34985619]
[1729731584629,4.72,172.86,172.78,1.4482457]
[1729731584837,13.90161049,172.85,172.77,5.9946]
[1729731585135,16.79701049,172.85,172.77,1.2746]
[1729731586322,13.90161049,172.85,172.77,1.2746]
[1729731586522,13.90161049,172.85,172.77,4.1712]
[1729731588134,4.72,172.84,172.77,1.2746]
[1729731588431,4.72,172.86,172.8,2.8961]
[1729731588838,4.72,172.86,172.81,2.896]
[1729731589334,4.72,172.86,172.8,2.8962]
[1729731590132,15.10721049,172.89,172.79,13.90161049]
[1729731590338,15.10721049,172.89,172.78,1.44830593]
[1729731590339,13.90161049,172.84,172.78,1.44830593]
[1729731590542,13.90161049,172.84,172.77,1.2746]
[1729731590742,4.72,172.84,172.77,1.2746]
[1729731591132,1.2056,172.89,172.81,2.8959]
[1729731591328,13.90161049,172.91,172.8,13.90161049]
[1729731591640,18.62161049,172.91,172.8,13.90161049]
[1729731591939,18.62161049,172.91,172.81,3.97455602]
[1729731591940,13.90161049,172.91,172.81,3.97455602]
[1729731592134,1.2443,172.95,172.82,4.72]
[1729731592337,3.8929,173.0,172.88,13.90161049]
[1729731592540,18.62161049,172.99,172.88,13.90161049]
[1729731592742,13.90161049,172.96,172.87,4.72]
[1729731592937,13.90161049,172.92,172.84,5.9806]
[1729731593134,13.90161049,172.92,172.84,1.2606]
[1729731593334,18.62161049,172.92,172.85,2.8953]
[1729731593546,21.51581049,172.92,172.84,1.2606]
[1729731593841,13.90161049,172.9,172.81,5.4225]
[1729731594028,13.90161049,172.9,172.81,2.5266]
[1729731594328,4.72,172.92,172.83,2.8957]
[1729731594532,26.95630753,172.92,172.81,2.5266]
[1729731595031,2.8947,172.9,172.81,5.4226]
[1729731595237,4.72,172.89,172.81,2.5266]
[1729731595439,7.6148,172.89,172.82,2.8957]
[1729731595732,4.72,172.89,172.82,2.8957]
[1729731596943,4.72,172.89,172.81,2.5266]
[1729731597241,22.23630753,172.92,172.82,1.44794462]
[1729731597437,4.86,172.91,172.85,2.8952]
[1729731597840,4.86,172.91,172.83,1.44775756]
[1729731598139,4.86,172.91,172.84,1.44774858]
[1729731598341,4.86,172.91,172.83,1.44774858]
[1729731598539,4.86,172.91,172.82,28.29650753]
[1729731598738,22.23630753,172.95,172.83,1.44770551]
[1729731598940,22.23630753,172.95,172.84,1.44770551]
[1729731599134,22.23630753,172.95,172.82,28.29650753]
[1729731599336,4.86,172.94,172.89,2.8947]
[1729731600342,22.23630753,172.98,172.85,22.23630753]
[1729731600536,2.4172,172.99,172.85,22.23630753]
[1729731600537,4.86,172.97,172.86,6.30756935]
[1729731600739,4.86,172.97,172.87,1.44756935]
[1729731600936,2.4172,172.99,172.86,4.86]
[1729731601143,1.2373,172.99,172.86,4.86]
[1729731601443,4.86,172.98,172.88,22.23630753]
[1729731601641,1.2373,172.99,172.89,3.6933]
[1729731601943,1.0,173.0,172.89,3.6933]
[1729731601944,5.86,173.0,172.9,22.23630753]
[1729731602151,1.0,173.0,172.9,22.23630753]
[1729731602337,216.90818579,173.28,172.93,22.23630753]
[1729731602637,216.90818579,173.28,172.89,8.5533]
[1729731602638,22.23630753,173.05,172.91,4.84]
[1729731602937,22.23630753,173.05,172.89,3.6933]
[1729731602938,22.23630753,172.99,172.89,3.6933]
[1729731603139,4.84,172.98,172.89,3.6933]
[1729731603445,4.84,172.97,172.89,3.6933]
[1729731603641,4.84,172.96,172.91,2.8944]
[1729731603840,4.84,172.96,172.89,25.92960753]
[1729731604034,4.84,172.96,172.89,3.6933]
[1729731604233,4.84,172.96,172.9,2.8944]
[1729731604439,4.84,172.96,172.85,4.84]
[1729731605142,4.84,172.96,172.9,2.8944]
[1729731606147,4.84,172.96,172.89,2.8946]
[1729731606345,4.84,172.96,172.86,5.52913711]
[1729731606550,4.84,172.96,172.87,1.44740348]
[1729731606734,2.894,172.94,172.88,1.44740348]
[1729731607046,22.23630753,172.94,172.84,1.2565]
[1729731607234,4.84,172.93,172.85,1.44771094]
[1729731607440,4.84,172.93,172.88,2.8947]
[1729731607742,2.4182,172.95,172.84,1.2565]
[1729731607945,4.84,172.94,172.87,2.895]
[1729731608143,4.84,172.94,172.85,4.08428163]
[1729731608447,4.84,172.94,172.9,2.8945]
[1729731608751,4.84,172.94,172.87,1.44752311]
[1729731608941,4.84,172.94,172.88,1.44752311]
[1729731609140,4.84,172.94,172.84,10.40984655]
[1729731609338,1.2995,173.04,172.86,22.23630753]
[1729731609339,4.84,172.96,172.86,22.23630753]
[1729731609538,4.84,172.96,172.92,2.8941]
[1729731609739,4.84,172.96,172.88,1.44753229]
[1729731609945,4.84,172.96,172.89,1.44753229]
[1729731610147,22.23630753,173.01,172.87,9.1501189]
[1729731610449,4.84,173.0,172.88,1.44731316]
[1729731610648,4.84,173.0,172.89,1.44731316]
[1729731610850,4.84,172.99,172.9,1.44731316]
[1729731611053,4.84,172.99,172.91,1.44731316]
[1729731611349,4.84,172.99,172.94,2.8937]
[1729731611541,4.84,172.99,172.88,1.44722871]
[1729731611744,22.23630753,173.01,172.96,2.8934]
[1729731611940,4.84,173.0,172.9,1.44722871]
[1729731612145,4.84,173.0,172.91,1.44722871]
[1729731612346,22.23630753,172.98,172.84,1.2565]
[1729731612540,22.23630753,172.95,172.85,1.44739163]
[1729731612743,4.84,172.94,172.86,1.44739163]
[1729731612943,4.84,172.94,172.87,1.44739163]
[1729731613147,4.84,172.94,172.88,1.44739163]
[1729731613347,2.4222,173.03,172.85,1.44744945]
[1729731613348,4.84,172.93,172.85,1.44744945]
[1729731613550,4.84,172.93,172.86,1.44744945]
[1729731613745,4.84,172.93,172.87,1.44744945]
[1729731613942,4.84,172.93,172.87,2.8949]
[1729731614540,4.84,172.93,172.88,2.8948]
[1729731616347,4.84,172.93,172.84,1.2565]
[1729731616348,22.23630753,172.92,172.86,2.8952]
[1729731616852,22.23630753,172.92,172.84,1.4476843]
[1729731617047,22.23630753,172.92,172.85,2.8953]
[1729731617247,25.13070753,172.92,172.85,2.8953]
[1729731617548,22.23630753,172.89,172.78,1.2643]
[1729731617758,4.84,172.88,172.79,1.44794333]
[1729731617945,4.84,172.88,172.8,1.44794333]
[1729731618249,4.84,172.88,172.81,2.896]
[1729731618455,4.84,172.88,172.79,1.44798647]
[1729731618752,2.8951,172.87,172.8,2.8962]
[1729731618952,4.84,172.88,172.78,1.44798647]
[1729731619156,4.84,172.88,172.79,1.44798647]
[1729731619342,4.84,172.88,172.78,1.44798647]
[1729731619543,4.84,172.87,172.79,1.44798647]
[1729731619756,4.84,172.87,172.8,1.44798647]
[1729731619950,4.84,172.87,172.8,2.8961]
[1729731620150,4.84,172.87,172.79,1.44798647]
[1729731620350,4.84,172.87,172.77,1.1857]
[1729731620351,22.23630753,172.89,172.8,1.44798647]
[1729731620651,22.23630753,172.89,172.78,1.44798647]
[1729731620848,4.84,172.88,172.79,1.44798647]
[1729731621049,4.84,172.88,172.8,1.44798647]
[1729731621352,4.84,172.88,172.78,1.44798647]
[1729731621556,62.5,172.93,172.85,2.8953]
[1729731621557,22.23630753,172.91,172.85,2.8953]
[1729731621748,22.23630753,172.91,172.78,23.68421784]
[1729731621944,22.23630753,172.91,172.79,10.58343544]
[1729731622150,4.84,172.9,172.86,2.8951]
[1729731622550,4.84,172.9,172.8,2.69801031]
[1729731622750,4.84,172.9,172.85,2.8953]
[1729731623947,22.23630753,172.89,172.8,1.2501]
[1729731624253,22.23630753,172.89,172.77,6.0257]
[1729731624254,22.23630753,172.89,172.78,1.44791031]
[1729731624451,22.23630753,172.89,172.83,2.8956]
[1729731624647,22.23630753,172.86,172.74,1.1979]
[1729731624848,22.23630753,172.84,172.74,2.64619025]
[1729731625154,4.84,172.83,172.74,1.1979]
[1729731625543,22.23630753,172.81,172.72,1.44829025]
[1729731625750,22.23630753,172.8,172.69,2.898]
[1729731625950,22.23630753,172.75,172.66,1.44883213]
[1729731626153,4.84,172.74,172.66,1.44883213]
[1729731626544,4.84,172.74,172.65,3.6556]
[1729731626545,4.84,172.74,172.65,5.10443213]
[1729731626750,4.84,172.74,172.65,2.4358]
[1729731628056,4.84,172.74,172.63,1.44883213]
[1729731628263,4.84,172.74,172.64,1.44883213]
[1729731628553,4.84,172.74,172.7,2.8979]
[1729731628750,4.84,172.74,172.63,1.44883213]
[1729731628953,4.84,172.74,172.64,1.44883213]
[1729731629156,4.84,172.74,172.61,16.96038944]
[1729731629157,4.84,172.74,172.68,2.8981]
[1729731629358,22.23630753,172.72,172.63,1.44883213]
[1729731629557,22.23630753,172.72,172.61,6.79975286]
[1729731629748,6.0386,172.74,172.61,6.79975286]
[1729731629749,22.23630753,172.69,172.61,1.2647]
[1729731629950,4.94,172.68,172.59,1.44883213]
[1729731630155,4.94,172.68,172.6,1.44883213]
[1729731630356,4.94,172.68,172.59,1.44883213]
[1729731630559,4.94,172.68,172.6,1.44883213]
[1729731630755,22.23630753,172.66,172.61,2.8994]
[1729731631052,22.23630753,172.64,172.57,1.44883213]
[1729731631253,22.23630753,172.64,172.58,1.44883213]
[1729731631254,4.94,172.63,172.58,1.44883213]
[1729731631458,4.94,172.63,172.55,1.44883213]
[1729731631658,4.94,172.63,172.52,1.44883213]
[1729731631857,23.43960753,172.64,172.54,2.9006]
[1729731631858,22.23630753,172.58,172.54,2.9006]
[1729731632055,4.94,172.57,172.46,1.2038]
[1729731632246,4.94,172.57,172.52,1.45026149]
[1729731632447,22.23630753,172.55,172.52,1.45026149]
[1729731632662,22.23630753,172.53,172.47,1.45026149]
[1729731632856,4.94,172.52,172.44,1.45026149]
[1729731633058,4.94,172.52,172.47,2.9016]
[1729731633359,4.94,172.52,172.48,1.45026149]
[1729731633557,4.94,172.52,172.4,5.07736636]
[1729731633558,22.23630753,172.53,172.5,2.9012]
[1729731633864,4.94,172.52,172.5,2.9012]
[1729731634257,4.94,172.52,172.43,9.16757886]
[1729731634455,4.94,172.52,172.44,10.6184417]
[1729731634753,4.94,172.52,172.45,1.45086284]
[1729731634960,4.94,172.52,172.46,1.45086284]
[1729731635252,4.94,172.52,172.41,6.54309238]
[1729731635253,4.94,172.52,172.47,1.45086284]
[1729731635457,4.94,172.52,172.43,9.15489752]
[1729731635660,4.94,172.52,172.41,6.54309238]
[1729731635661,4.94,172.52,172.5,2.9012]
[1729731637170,4.94,172.51,172.5,2.9012]
[1729731640660,1.2346,172.54,172.49,2.9014]
[1729731640860,4.94,172.51,172.41,1.45087496]
[1729731641064,4.94,172.51,172.4,1.45087496]
[1729731641364,4.94,172.51,172.43,2.9024]
[1729731641566,4.94,172.51,172.4,1.45087496]
[1729731642566,4.94,172.51,172.49,2.9013]
[1729731642969,4.94,172.5,172.39,38.68140459]
[1729731643266,4.94,172.52,172.42,36.21300459]
[1729731643467,4.94,172.52,172.42,41.15300459]
[1729731643862,4.94,172.52,172.51,2.9011]
[1729731644063,4.94,172.52,172.42,41.15300459]
[1729731644269,1.2346,172.54,172.42,41.15300459]
[1729731644468,4.94,172.53,172.45,2.902]
[1729731644664,4.94,172.52,172.42,41.15300459]
[1729731645169,4.94,172.52,172.51,2.9011]
[1729731645569,36.21300459,172.58,172.55,2.9003]
[1729731645762,36.21300459,172.61,172.46,4.94]
[1729731646065,4.94,172.6,172.5,2.9011]
[1729731646265,4.94,172.6,172.47,36.21300459]
[1729731646467,36.21300459,172.61,172.48,1.2953]
[1729731646661,4.94,172.59,172.48,2.4945]
[1729731647063,4.94,172.58,172.57,2.9001]
[1729731647259,4.94,172.6,172.5,41.15300459]
[1729731647668,4.94,172.6,172.59,2.8997]
[1729731648171,4.94,172.6,172.5,41.15300459]
[1729731648371,4.94,172.6,172.58,2.8999]
[1729731648557,4.94,172.6,172.5,41.15300459]
[1729731648761,4.94,172.6,172.53,2.9007]
[1729731648966,4.94,172.62,172.53,36.21300459]
[1729731649174,4.94,172.62,172.54,1.1831]
[1729731649470,4.94,172.68,172.55,36.21300459]
[1729731650068,4.94,172.68,172.64,2.8988]
[1729731650569,4.94,172.68,172.63,2.899]
[1729731650969,4.94,172.68,172.55,36.21300459]
[1729731651161,1.2375,172.72,172.61,36.21300459]
[1729731651362,1.2375,172.72,172.62,7.4067]
[1729731651966,1.2375,172.72,172.63,1.2452]
[1729731653073,1.2375,172.72,172.63,6.1852]
[1729731653461,4.94,172.73,172.63,6.1852]
[1729731653462,4.94,172.73,172.63,42.39820459]
[1729731653865,4.94,172.76,172.63,42.39820459]
[1729731654066,4.94,172.76,172.72,2.8976]
[1729731654373,36.21300459,172.74,172.63,1.2452]
[1729731654870,4.94,172.76,172.63,1.2452]
[1729731654871,41.15300459,172.76,172.63,1.2452]
[1729731656069,36.21300459,172.74,172.63,1.2452]
[1729731656269,22.2633424,172.71,172.67,2.8982]
[1729731656469,5.0,172.73,172.63,1.2452]
[1729731657069,5.0,172.73,172.68,2.8981]
[1729731657474,5.0,172.73,172.63,1.2452]
[1729731657475,5.0,172.73,172.67,2.8984]
[1729731657671,5.0,172.73,172.63,1.2452]
[1729731658079,5.0,172.73,172.7,2.8978]
[1729731658271,5.0,172.73,172.63,1.2452]
[1729731658673,22.2633424,172.74,172.7,2.8978]
[1729731658872,5.0,172.73,172.63,1.2452]
[1729731659380,5.0,172.73,172.68,2.8981]
[1729731659584,22.2633424,172.71,172.63,1.2452]
[1729731659784,22.2633424,172.71,172.69,2.8979]
[1729731660081,22.2633424,172.71,172.63,1.2452]
[1729731660678,22.2633424,172.71,172.62,1.2129]
[1729731660875,22.2633424,172.71,172.47,368.45787195]
[1729731660876,22.2633424,172.66,172.55,3.6982]
[1729731661071,22.2633424,172.63,172.55,2.4827]
[1729731661275,22.2633424,172.61,172.54,5.0]
[1729731661471,27.2633424,172.61,172.51,1.2139]
[1729731661669,27.2633424,172.61,172.51,6.2139]
[1729731661878,22.2633424,172.58,172.51,6.2139]
[1729731662074,22.2633424,172.58,172.49,5.0]
[1729731662383,22.2633424,172.58,172.55,2.9003]
[1729731663081,5.0,172.61,172.5,22.2633424]
[1729731663483,5.0,172.61,172.57,2.9]
[1729731663679,5.0,172.61,172.5,22.2633424]
[1729731663875,27.2633424,172.61,172.49,5.0]
[1729731664075,27.2633424,172.61,172.57,2.8999]
[1729731664477,27.2633424,172.61,172.38,25.85417195]
[1729731664683,27.2633424,172.61,172.47,1.0654791]
[1729731665082,27.2633424,172.61,172.51,2.9011]
[1729731665282,27.2633424,172.61,172.46,5.0]
[1729731665486,27.2633424,172.61,172.47,1.06550292]
[1729731666486,27.2633424,172.61,172.48,1.06550719]
[1729731666678,27.2633424,172.61,172.47,1.06550719]
[1729731666883,22.2633424,172.58,172.47,1.06550719]
[1729731667080,5.0,172.57,172.47,1.06550719]
[1729731668393,22.2633424,172.58,172.55,2.9003]
[1729731669284,22.2633424,172.58,172.53,2.9006]
[1729731669593,22.2633424,172.58,172.48,5.0]
[1729731669794,22.2633424,172.55,172.52,2.9008]
[1729731669985,22.2633424,172.55,172.46,5.0]
[1729731670292,22.2633424,172.55,172.47,1.06552508]
[1729731670486,22.2633424,172.55,172.52,2.9008]
[1729731670691,22.2633424,172.55,172.46,5.0]
[1729731670887,22.2633424,172.55,172.47,1.06552607]
[1729731671088,22.2633424,172.55,172.53,2.9007]
[1729731673692,22.2633424,172.55,172.46,5.0]
[1729731674595,5.0,172.56,172.46,5.0]
[1729731674890,22.2633424,172.58,172.47,1.06553539]
[1729731675099,2.4225,172.62,172.47,23.32887779]
[1729731675284,2.4225,172.62,172.46,5.0]
[1729731675285,5.0,172.62,172.5,22.2633424]
[1729731675482,5.0,172.62,172.51,7.4478]
[1729731675696,22.2633424,172.6,172.51,7.4478]
[1729731676290,22.2633424,172.6,172.51,2.4478]
[1729731676888,22.2633424,172.6,172.55,2.9003]
[1729731677089,22.2633424,172.58,172.51,2.4478]
[1729731677491,22.2633424,172.58,172.55,2.9004]
[1729731678097,27.2633424,172.58,172.55,2.9004]
[1729731678496,27.2633424,172.58,172.45,7.439]
[1729731678693,27.2633424,172.58,172.51,2.901]
[1729731678694,22.2633424,172.54,172.51,2.901]
[1729731679093,22.2633424,172.54,172.45,7.439]
[1729731679289,22.2633424,172.54,172.42,22.2633424]
[1729731679498,27.2633424,172.54,172.44,6.06554559]
[1729731679803,27.2633424,172.54,172.51,2.901]
[1729731680702,27.2633424,172.54,172.44,5.0]
[1729731681598,27.2633424,172.54,172.51,2.9009]
[1729731682097,27.2633424,172.54,172.49,2.9013]
[1729731682304,27.2633424,172.54,172.44,5.0]
[1729731682797,22.2633424,172.49,172.38,2.4752]
[1729731682988,22.2633424,172.49,172.4,5.0]
[1729731683190,22.2633424,172.49,172.43,2.9024]
[1729731683393,22.2633424,172.49,172.4,5.0]
[1729731683701,22.2633424,172.49,172.47,2.9017]
[1729731684089,22.2633424,172.49,172.4,5.0]
[1729731684305,22.2633424,172.49,172.45,2.902]
[1729731684504,22.2633424,172.49,172.4,5.0]
[1729731684799,22.2633424,172.49,172.34,62.62]
[1729731685007,22.2633424,172.46,172.37,5.0]
[1729731685199,22.2633424,172.46,172.38,1.06562587]
[1729731685505,22.2633424,172.46,172.37,5.0]
[1729731685705,22.2633424,172.46,172.39,1.06563899]
[1729731686001,22.2633424,172.46,172.37,5.0]
[1729731686403,22.2633424,172.44,172.38,1.06563842]
[1729731686594,22.2633424,172.44,172.35,8.6577]
[1729731686595,22.2633424,172.44,172.36,4.94]
[1729731687000,22.2633424,172.44,172.43,2.9024]
[1729731687197,22.2633424,172.52,172.4,4.94]
[1729731687607,22.2633424,172.52,172.47,2.9017]
[1729731688108,22.2633424,172.52,172.4,4.94]
[1729731688405,22.2633424,172.52,172.48,2.9016]
[1729731689103,22.2633424,172.52,172.4,4.94]
[1729731689104,22.2633424,172.52,172.49,2.9014]
[1729731689605,22.2633424,172.52,172.4,4.94]
[1729731689807,22.2633424,172.52,172.48,2.9015]
[1729731690605,22.2633424,172.52,172.46,2.9018]
[1729731690803,22.2633424,172.48,172.36,4.94]
[1729731691107,4.94,172.47,172.44,2.9023]
[1729731691304,4.94,172.47,172.36,4.94]
[1729731691609,1.2499,172.51,172.4,22.2633424]
[1729731691905,4.94,172.52,172.41,6.00563922]
[1729731692105,1.2241,172.54,172.43,22.2633424]
[1729731692404,4.94,172.56,172.46,22.2633424]
[1729731692608,23.4489424,172.59,172.47,4.94]
[1729731692804,4.94,172.58,172.47,4.94]
[1729731693199,4.94,172.58,172.54,2.9005]
[1729731694711,25.1637424,172.56,172.48,2.9015]
[1729731695009,22.2633424,172.52,172.41,1.2898]
[1729731695600,23.5534424,172.52,172.48,2.9015]
[1729731695806,23.5534424,172.52,172.41,1.2898]
[1729731696799,23.5534424,172.52,172.47,2.9016]
[1729731697206,23.5534424,172.52,172.41,1.2898]
[1729731697614,1.2901,172.52,172.41,23.5531424]
[1729731697815,1.2901,172.52,172.42,3.94293015]
[1729731698213,1.2901,172.52,172.48,2.9015]
[1729731698416,23.5534424,172.52,172.42,3.94293015]
[1729731698718,23.5534424,172.52,172.41,1.2898]
[1729731699410,23.5534424,172.52,172.46,2.9019]
[1729731699616,22.2633424,172.49,172.38,2.537]
[1729731699806,27.2033424,172.49,172.43,2.9023]
[1729731700115,4.94,172.49,172.38,7.477]
[1729731700311,4.94,172.49,172.39,1.0656728]
[1729731701416,4.94,172.49,172.44,2.9021]
[1729731701812,4.94,172.49,172.47,2.9017]
[1729731702016,28.4934424,172.52,172.47,2.9017]
[1729731703204,1.2901,172.52,172.42,27.2033424]
[1729731703617,1.2901,172.52,172.49,2.9013]
[1729731706711,4.94,172.54,172.43,1.2663]
[1729731707224,2.4754,172.58,172.52,2.9008]
[1729731707418,4.94,172.56,172.52,2.9008]
[1729731707914,4.94,172.56,172.46,4.94]
[1729731708112,27.2033424,172.56,172.51,2.9011]
[1729731708511,27.2033424,172.56,172.46,4.94]
[1729731708706,27.2033424,172.56,172.53,2.9007]
[1729731709120,27.2033424,172.56,172.54,2.9005]
[1729731709320,2.4754,172.58,172.47,1.1826]
[1729731709321,6.2305,172.58,172.47,1.1826]
[1729731709521,4.94,172.6,172.48,22.2633424]
[1729731709717,4.94,172.6,172.56,2.9001]
[1729731710215,27.2033424,172.6,172.55,2.9004]
[1729731710417,22.2633424,172.57,172.47,7.4096]
[1729731711421,22.2633424,172.57,172.53,2.9006]
[1729731711617,22.2633424,172.57,172.47,7.4096]
[1729731713114,4.94,172.6,172.47,7.4096]
[1729731713115,27.2033424,172.6,172.47,7.4096]
[1729731713712,22.2633424,172.62,172.48,22.2633424]
[1729731713917,2.4427,172.63,172.47,7.4096]
[1729731713918,62.62,172.8,172.57,22.2633424]
[1729731714114,5.7923,172.81,172.57,22.2633424]
[1729731714115,22.2633424,172.72,172.58,4.94]
[1729731714314,22.2633424,172.72,172.58,7.4309]
[1729731714516,22.2633424,172.69,172.58,7.4309]
[1729731714710,27.2033424,172.69,172.58,2.4909]
[1729731714918,22.2633424,172.67,172.59,4.94]
[1729731715122,22.2633424,172.67,172.52,1.1882]
[1729731715123,22.2633424,172.67,172.56,4.94]
[1729731715427,22.2633424,172.67,172.58,2.8998]
[1729731715726,22.2633424,172.64,172.55,4.94]
[1729731716330,22.2633424,172.64,172.6,2.8995]
[1729731716527,22.2633424,172.61,172.53,2.5227]
[1729731716725,22.2633424,172.61,172.54,5.02]
[1729731717122,22.2633424,172.61,172.58,2.8999]
[1729731718127,1.2967,172.63,172.61,2.8993]
[1729731718317,22.2633424,172.64,172.61,2.8993]
[1729731719132,22.2633424,172.66,172.61,2.8992]
[1729731719323,22.2633424,172.66,172.54,5.02]
[1729731719535,22.2633424,172.66,172.54,27.2833424]
[1729731719827,22.2633424,172.66,172.57,2.9]
[1729731720024,22.2633424,172.66,172.54,27.2833424]
[1729731720430,22.2633424,172.66,172.6,2.8994]
[1729731720629,22.2633424,172.64,172.6,2.8994]
[1729731722331,27.2833424,172.67,172.54,27.2833424]
[1729731722531,27.2833424,172.67,172.54,5.02]
[1729731722930,30.1817424,172.67,172.6,2.8994]
[1729731723128,22.2633424,172.64,172.54,5.02]
[1729731723530,27.2833424,172.67,172.54,27.2833424]
[1729731723833,1.2471,172.68,172.57,22.2633424]
[1729731724137,1.2471,172.68,172.58,5.02]
[1729731724532,1.2471,172.68,172.64,2.8988]
[1729731725436,1.2471,172.68,172.59,1.2233]
[1729731725643,5.02,172.7,172.59,1.2233]
[1729731726433,6.3118,172.71,172.59,1.2233]
[1729731726833,9.2097,172.71,172.62,2.8991]
[1729731727136,9.2097,172.71,172.59,1.2233]
[1729731727137,22.2633424,172.7,172.6,5.02]
[1729731727341,6.3118,172.71,172.6,5.02]
[1729731727643,5.02,172.73,172.61,1.2005]
[1729731727848,22.2633424,172.75,172.62,22.2633424]